Cogmind - Beta 12 @@@ ROGUE MODE // 2023.04.09 @ 14:53:54 Player: dhtilly Result: Destroyed by G-47 Trooper with Particle Gun Performance ------------- Evolutions (3) 1500 Regions Visited (11) 2200 Robots Destroyed (222) 1110 Value Destroyed (8822) 8822 Prototype IDs (30) 600 Alien Tech Used (0) 0 Bonus (5319) 5319 TOTAL SCORE: 19551 Bonus ------- Triggered High Security 500 High Alert Combat Kills 2275 Follower Combat Kills 592 Entered Garrisons 400 Used RIF Installer 1500 Aligned with FarCom 300 Friendly Fire -248 Cogmind --------- Core Integrity 0/700 Matter 91/300 Energy 160/160 System Corruption 5% Temperature Danger (489) Movement Walking (190) Ox1 Location -7/Factory Parts ------- > --- POWER (1) -------- Light Nuclear Core > --- PROPULSION (4) --- Carbon-fiber Leg Carbon-fiber Leg Gravmag System VTOL Module > --- UTILITY (6) ------ Heavy Armor Plating Heavy Armor Plating Improved Medium Armor Plating Relay Coupler [Grunt] (22) > --- WEAPON (2) ------- Gauss Cannon Enhanced Gauss Cannon > --- INVENTORY (5) ---- Relay Coupler [Swarmer] (36) Makeshift Spear Peak State ------------ > --- POWER ------------ Light Nuclear Core > --- PROPULSION ------- Light Treads Light Treads Light Treads Improved Treads > --- UTILITY ---------- Improved Cooling System Huge Storage Unit Improved Targeting Computer Improved Transmission Jammer Improved Medium Armor Plating High-powered Tractor Beam > --- WEAPON ----------- Arc Projector Gauss Cannon > --- INVENTORY -------- High-capacity Battery Large Matter Pod Improved Terrain Scanner Improved Medium Armor Plating Layered Light Armor Plating Medium Reactive Plating Improved Shield Generator Authchip [Device] Relay Coupler [NC] Relay Coupler [Swarmer] Relay Coupler [Grunt] Relay Coupler [Grunt] Relay Coupler [Brawler] Relay Coupler [Sentry] Gauss Cannon Magnetic Acceleration Cannon Mass Driver Enhanced Gauss Cannon Missile Launcher Improved Datajack Improved Remote Datajack Improved Remote Datajack Field Lobotomy Kit Makeshift Spear [Rating: 44] Favorites ----------- Power Reinforced Ion Engine Engine Reinforced Ion Engine Power Core Light Nuclear Core Propulsion Light Treads Treads Light Treads Leg Carbon-fiber Leg Wheel Armored Wheel Hover Unit Gravmag System Flight Unit VTOL Module Utility High-capacity Storage Unit Device Seismic Detector Storage High-capacity Storage Unit Processor Improved Targeting Computer Hackware Relay Coupler [Grunt] Protection Medium Armor Plating Weapon Flak Cannon Energy Gun Heavy EM Pulse Gun Energy Cannon Long-range Proton Cannon Ballistic Gun Improved Assault Rifle Ballistic Cannon Flak Cannon Launcher Mini Grenade Launcher Special Weapon Improved Remote Datajack Impact Weapon Heavy Flail Piercing Weapon Makeshift Spear Build | -11 -10 -10 -9 -9 -9 -8 -8 -8 -8 -8 -7 ------- Run | Jun Mat Min Mat Min Exi Min Mat Gar Mat Gar Fac Slots Evolved 6 | . . . 2 . . . 2 . . . 2 Power . | . . . . . . . . . . . . Propulsion 2 | . . . 1 . . . 1 . . . . Utility 4 | . . . 1 . . . 1 . . . 2 Weapon . | . . . . . . . . . . . . Parts Attached 261 | 6 9 3 31 . . 13 25 53 7 56 58 Power 16 | 1 2 . 2 . . 2 1 1 . 4 3 Engine 10 | 1 2 . 2 . . 2 1 . . 1 1 Core 6 | . . . . . . . . 1 . 3 2 Reactor . | . . . . . . . . . . . . Propulsion 53 | 2 2 . 12 . . . 8 7 . 6 16 Treads 27 | . . . 5 . . . 5 6 . 6 5 Leg 2 | . . . . . . . . . . . 2 Wheel 22 | 2 2 . 7 . . . 3 1 . . 7 Hover 1 | . . . . . . . . . . . 1 Flight 1 | . . . . . . . . . . . 1 Utility 74 | 1 3 . 9 . . 3 8 10 4 16 20 Device 29 | . 1 . 3 . . 1 4 1 3 6 10 Storage 5 | 1 1 . 1 . . . . 1 . 1 . Processor 1 | . . . . . . . . 1 . . . Hackware 10 | . . . . . . . . 3 . 4 3 Protection 29 | . 1 . 5 . . 2 4 4 1 5 7 Artifact . | . . . . . . . . . . . . Weapon 118 | 2 2 3 8 . . 8 8 35 3 30 19 Energy Gun 20 | 1 . . 2 . . . 1 14 . 1 1 Energy Cannon 10 | . . . . . . . . 1 1 7 1 Ballistic Gun 8 | 1 2 1 4 . . . . . . . . Ballistic Cannon 35 | . . . 2 . . 3 5 3 . 10 12 Launcher 13 | . . 2 . . . 3 . 1 . 4 3 Special Weapon 8 | . . . . . . . . 3 . 3 2 Impact Weapon 6 | . . . . . . . . 6 . . . Slashing Weapon . | . . . . . . . . . . . . Piercing Weapon 18 | . . . . . . 2 2 7 2 5 . Special Melee Weapon . | . . . . . . . . . . . . Unidentified Prototypes 7 | . 1 . 3 . . . 1 . . . 2 Parts Lost 58 | . . . 6 . . 1 11 7 1 8 24 Power 7 | . . . . . . . 1 1 . 2 3 Propulsion 26 | . . . 2 . . . 4 3 1 5 11 Utility 16 | . . . 2 . . 1 4 1 . . 8 Weapon 9 | . . . 2 . . . 2 2 . 1 2 Highest Loss Streak 12 | . . . 3 . . 1 8 3 1 2 12 To Critical Strikes 2 | . . . . . . . . . . . 2 Average Slot Usage (%) 97 | . 93 100 99 100 100 99 97 99 98 98 90 Engine 6 | . 14 14 11 11 11 11 8 3 . 5 . Core 2 | . . . . . . . . 5 9 3 6 Treads 17 | . . . 8 11 11 11 14 16 18 33 16 Wheel 15 | . 28 28 24 22 22 22 20 18 16 1 9 Device 9 | . 2 . 10 11 11 11 10 2 9 13 16 Storage 9 | . 14 14 11 11 11 11 9 9 9 9 6 Processor 4 | . . . . . . . . 8 9 9 6 Hackware 2 | . . . . . . . . 9 . 2 . Protection 7 | . 5 14 11 11 11 10 15 5 8 2 8 Energy Gun 2 | . . . 1 . . . . 10 . . 2 Energy Cannon 1 | . . . . . . . . . 7 4 . Ballistic Gun 3 | . 27 14 9 . . . . . . . . Ballistic Cannon 9 | . . . 10 22 22 19 16 2 9 9 9 Naked Turns . | . . . . . . . . . . . . Heaviest Build 138 | 11 59 59 70 70 70 71 72 110 111 111 138 Greatest Support 83 | 20 20 20 40 24 24 24 60 46 24 83 83 Greatest Overweight (x) 29 | 1 2 2 6 2 2 2 2 4 9 9 29 Average Overweight (x) 2 | . 1 2 2 2 2 2 1 2 4 1 2 Largest Inventory Capacity 25 | 8 20 20 20 20 20 20 20 25 25 25 25 Average Capacity 21 | 7 18 20 20 20 20 20 20 21 25 25 23 Most Carried 25 | 4 17 19 20 20 20 20 20 25 25 25 25 Average Carried 20 | 2 12 17 19 20 19 19 18 20 24 24 22 Final Capacity 25 | 8 20 20 20 20 20 20 20 25 25 25 5 Final Carried 25 | 4 16 19 20 20 20 20 20 25 25 25 2 Class Distribution -------------------- 56% | Mutant 37% | Bothacker-Mutant 3% | Bothacker-Skirmisher Dominant Class ---------------- Mutant | -10/Materials Mutant | -10/Mines Mutant | -9/Materials Mutant | -9/Mines Mutant | -9/Exiles Mutant | -8/Mines Mutant | -8/Materials Mutant | -8/Garrison Bothacker-Skirmisher | -8/Materials Bothacker-Mutant | -8/Garrison Bothacker-Mutant | -7/Factory Resources | -11 -10 -10 -9 -9 -9 -8 -8 -8 -8 -8 -7 ----------- Run | Jun Mat Min Mat Min Exi Min Mat Gar Mat Gar Fac Matter Collected 6888 | 232 316 90 1064 152 . 473 901 1070 260 1061 1269 Remotely 1078 | . . . . . . . 394 105 . 300 279 Salvage Created 6681 | . 437 85 1588 86 . 310 878 1118 426 578 1175 Parts 401 | . 36 3 106 7 . 31 50 55 21 28 64 Haulers Intercepted 19 | . 2 . 5 . . . 5 . 3 . 4 Recyclers Shooed 2 | . . . 1 . . . 1 . . . . Parts Field Recycled 36 | . . . . . . . . . . . 36 Retrieved Matter 374 | . . . . . . . . . . . 374 Parts Self-Destructed . | . . . . . . . . . . . . Prevented . | . . . . . . . . . . . . Kills | -11 -10 -10 -9 -9 -9 -8 -8 -8 -8 -8 -7 ------- Run | Jun Mat Min Mat Min Exi Min Mat Gar Mat Gar Fac Combat Hostiles Destroyed 166 | . 12 6 31 2 . 19 19 23 6 17 31 Melee 6 | . . . . . . . 6 . . . . Guns 40 | . 12 . 15 . . . . 13 . . . Cannons 86 | . . . 16 2 . 16 12 4 5 13 18 AOE 31 | . . 6 . . . 3 1 3 1 4 13 Classes Destroyed 19 | . 5 2 6 . . 2 . 1 . 1 2 Worker 12 | . . . 4 1 . 1 2 . . . 4 Builder 9 | . . . 1 1 . 1 . . . . 6 Tunneler 3 | . . . 1 1 . 1 . . . . . Hauler 19 | . 2 . 5 . . . 5 . 3 . 4 Recycler 4 | . . . 1 . . . 2 . . . 1 Mechanic 3 | . . . . . . . . . . . 3 Operator 4 | . 1 . 3 . . . . . . . . Watcher 4 | . 1 . 3 . . . . . . . . Swarmer 38 | . 8 . 7 . . 9 8 . . 2 4 Grunt 66 | . 4 2 13 2 . 8 3 5 4 10 15 Brawler 7 | . . . 1 . . . 1 2 . . 3 Duelist 8 | . . . . . . 1 1 2 . 1 3 Protector 1 | . . . . . . . . . . . 1 Sentry 30 | . . . 10 . . . 5 9 2 4 . Hunter 4 | . . . . . . 1 1 2 . . . Programmer 8 | . . . . . . . . 3 . . 5 Behemoth 1 | . . . . . . . . . . 1 . Zionite 1 | . . 1 . . . . . . . . . Assembled 4 | . . 4 . . . . . . . . . Best Kill Streak 11 | . 7 6 5 2 . 6 5 4 2 3 11 Combat Bots Only 6 | . 6 6 4 1 . 6 5 4 2 3 5 Max Kills in Single Turn 6 | . 2 3 2 1 . 2 1 2 1 1 6 Gunslinging . | . . . . . . . . . . . . Exploded 3 | . . 3 . . . 2 1 2 1 1 3 Melee 1 | . . . . . . . 1 . . . . Uniques/NPCs Destroyed . | . . . . . . . . . . . . Combat | -11 -10 -10 -9 -9 -9 -8 -8 -8 -8 -8 -7 -------- Run | Jun Mat Min Mat Min Exi Min Mat Gar Mat Gar Fac Damage Taken 10642 | . 256 176 1172 63 . 492 1508 1426 255 1635 3659 Core 1475 | . 58 . 165 . . 47 188 167 15 122 713 Absorbed by Shields 261 | . . . . . . 195 9 . . 4 53 Regen/Repaired (Parts) 14 | . . . 14 . . . . . . . . Core Remaining (%) 58 | 100 . 76 . . . 47 . . . 10 . Volleys Fired 536 | . 33 6 110 8 . 48 50 83 25 78 95 Largest 2 | . 2 1 2 2 . 2 2 2 2 2 2 Hottest 129 | . 46 30 88 88 . 88 88 95 125 129 105 Shots Fired 936 | . 66 6 216 16 . 66 96 155 44 118 153 Gun 326 | . 66 . 132 . . . . 120 . . 8 Cannon 549 | . . . 84 16 . 61 96 30 44 98 120 Launcher 35 | . . 6 . . . 5 . 2 . 12 10 Special 26 | . . . . . . . . 3 . 8 15 Kinetic 684 | . 66 . 196 16 . 61 96 30 25 74 120 Thermal 20 | . . . 20 . . . . . . . . Explosive 35 | . . 6 . . . 5 . 2 . 12 10 Electromagnetic 171 | . . . . . . . . 120 19 24 8 Robot Hit Streak 16 | . 13 5 15 7 . 9 8 16 8 13 15 Robot Miss Streak 23 | . 2 1 8 5 . 10 23 8 5 4 3 Penetration Max 1 | . . . . . . . . . . 1 1 Secondary Targets . | . . . . . . . . . . . . Shots Hit Robots 729 | . 47 2 180 16 . 58 103 116 34 74 99 Core Hits 521 | . 22 20 109 15 . 75 65 60 26 44 85 Critical Kills 2 | . 1 . 1 . . . . . . . . Critical Parts Destroyed . | . . . . . . . . . . . . Critical Strikes 22 | . 1 . 2 . . . 1 . . 6 12 Burn 1 | . . . 1 . . . . . . . . Destroy 2 | . 1 . 1 . . . . . . . . Blast 18 | . . . . . . . . . . 6 12 Impale 1 | . . . . . . . 1 . . . . Melee Attacks 114 | . . . . . . . 30 41 8 35 . Impact 31 | . . . . . . . . 31 . . . Slashing . | . . . . . . . . . . . . Piercing 83 | . . . . . . . 30 10 8 35 . Sneak Attacks 6 | . . . . . . . 6 . . . . Combat Hostiles . | . . . . . . . . . . . . Follow-up Attacks . | . . . . . . . . . . . . Damage Inflicted 19734 | . 713 492 2782 257 . 1361 2003 2130 814 2438 6744 Guns 3665 | . 713 . 1645 . . . . 1233 . . 74 Cannons 9426 | . . . 1113 257 . 1008 1096 610 757 1874 2711 Explosions 5862 | . . 492 24 . . 353 130 287 57 564 3955 Melee 769 | . . . . . . . 769 . . . . Ramming 12 | . . . . . . . 8 . . . 4 Kinetic 10600 | . 713 . 2532 257 . 1008 1096 610 297 1376 2711 Thermal 2426 | . . . 226 . . . 130 48 57 . 1965 Explosive 3662 | . . 492 24 . . 353 . 239 . 564 1990 Electromagnetic 2265 | . . . . . . . . 1233 460 498 74 Impact . | . . . . . . . . . . . . Slashing . | . . . . . . . . . . . . Piercing 769 | . . . . . . . 769 . . . . Highest Corruption 5 | . . . . . . . . 3 3 3 5 Average Corruption 2 | . . . . . . . . 2 3 3 2 Corruption Purged . | . . . . . . . . . . . . Corruption Blocked . | . . . . . . . . . . . . Effects 143 | . . . . . . . . 56 12 69 6 Message Errors 24 | . . . . . . . . 9 3 11 1 Matter Fused 47 | . . . . . . . . 18 6 22 1 Heat Flow Errors 12 | . . . . . . . . 6 . 6 . Energy Discharges 23 | . . . . . . . . 9 1 10 3 Parts Fused 5 | . . . . . . . . 2 1 2 . Data Loss (minor) 19 | . . . . . . . . 9 . 10 . Data Loss (major) 4 | . . . . . . . . . 1 3 . Misfires 3 | . . . . . . . . 1 . 2 . Alerts 5 | . . . . . . . . 2 . 3 . Weapon Failures 1 | . . . . . . . . . . . 1 Overload Shots . | . . . . . . . . . . . . Overflow Damage 517 | . . 5 . . . 10 67 6 32 30 367 Projectiles 63 | . . . . . . . . 6 . 17 40 Explosions 454 | . . 5 . . . 10 67 . 32 13 327 Melee . | . . . . . . . . . . . . Knockbacks 142 | . . . 28 10 . 12 38 . 13 12 29 Impact . | . . . . . . . . . . . . Kinetic 133 | . . . 26 9 . 11 37 . 12 11 27 Secondary 9 | . . . 2 1 . 1 1 . 1 1 2 Self-Inflicted Damage 511 | . . 25 70 . . . 23 . 42 37 314 Shots 8 | . . 1 1 . . . 1 . 1 1 3 Rammed 6 | . . . . . . . 5 . . . 1 Targets Rammed 6 | . . . . . . . 5 . . . 1 Kicked . | . . . . . . . . . . . . Crushed . | . . . . . . . . . . . . Highest Temperature 462 | . 12 21 345 126 . 277 150 299 316 245 462 Average Temperature 85 | . 6 10 82 40 . 100 44 85 118 54 102 Received Heat Transfer 3239 | . 42 9 489 36 . 158 519 495 135 465 891 Effects 10 | . . . 1 . . 2 . 3 1 . 3 Shutdowns 1 | . . . . . . . . . . . 1 Energy Bleed 2 | . . . . . . . . . 1 . 1 Interference 6 | . . . . . . 2 . 3 . . 1 Damage (minor) 1 | . . . 1 . . . . . . . . Siege Activations . | . . . . . . . . . . . . Robots Corrupted 3 | . . . . . . . . 3 . . . Combat Hostiles 3 | . . . . . . . . 3 . . . Parts Fried 5 | . . . . . . . . 4 1 . . Impact Corruptions . | . . . . . . . . . . . . Robots Melted . | . . . . . . . . . . . . Combat Hostiles . | . . . . . . . . . . . . Parts Melted 1 | . . . . . . . . . . . 1 Heat Transferred 1930 | . . . 555 . . . 100 25 50 . 1200 Parts Sabotaged . | . . . . . . . . . . . . Parts Stolen . | . . . . . . . . . . . . Parts Stripped . | . . . . . . . . . . . . Power Chain Reactions 3 | . . . . . . . . 1 1 . 1 Missiles Intercepted . | . . . . . . . . . . . . Alert | -11 -10 -10 -9 -9 -9 -8 -8 -8 -8 -8 -7 ------- Run | Jun Mat Min Mat Min Exi Min Mat Gar Mat Gar Fac Peak Influence 2413 | . 250 99 530 119 . 304 538 1811 919 2413 1858 Initial 1266 | . . 25 . 54 . . 118 310 882 464 1266 Average 776 | . 84 64 180 57 . 110 345 1088 824 1335 1376 Maximum Alert Level 5 | . 1 . 2 . . 1 2 5 3 5 5 Low Security (%) 31 | 100 90 100 70 100 . 76 25 . . . . Level 1 7 | . 9 . 19 . . 23 27 3 . . . Level 2 10 | . . . 9 . . . 46 14 13 12 . Level 3 19 | . . . . . . . . 41 86 32 7 Level 4 17 | . . . . . . . . 29 . 22 67 Level 5 10 | . . . . . . . . 10 . 32 . High Security 2 | . . . . . . . . . . . 24 Max Security . | . . . . . . . . . . . . Squads Dispatched 33 | . 3 . 2 . . . 5 . 2 . 21 Investigation 1 | . . . . . . . . . . . 1 Extermination 2 | . . . . . . . . . . . 2 Reinforcement 8 | . 3 . 2 . . . 1 . . . 2 Assault 16 | . . . . . . . . . . . 16 Garrison 6 | . . . . . . . 4 . 2 . . Intercept . | . . . . . . . . . . . . Searches Triggered . | . . . . . . . . . . . . Construction Impeded 1 | . . . . . . . . . . . 1 Haulers Reinforced . | . . . . . . . . . . . . Active Scanning Responses . | . . . . . . . . . . . . Cargo Convoy Interrupts 1 | . . . . . . . . . . . 1 Stealth | -11 -10 -10 -9 -9 -9 -8 -8 -8 -8 -8 -7 --------- Run | Jun Mat Min Mat Min Exi Min Mat Gar Mat Gar Fac Distress Signals 11 | . 1 1 3 . . . 6 . . . . Communications Jammed 24 | . . . . . . . . . . . 24 Distress Signals 22 | . . . . . . . . . . . 22 Times Spotted 305 | . 22 10 51 4 2 20 39 38 7 28 84 Peak Tracking Total 19 | . 6 7 5 2 3 5 8 5 2 4 19 Tactical Retreats 15 | . 2 . 1 . . 1 3 4 1 2 1 Traps | -11 -10 -10 -9 -9 -9 -8 -8 -8 -8 -8 -7 ------- Run | Jun Mat Min Mat Min Exi Min Mat Gar Mat Gar Fac Traps Triggered 29 | . 1 . 1 . . . 1 13 . 12 1 Indirectly . | . . . . . . . . . . . . Trap Hack Attempts . | . . . . . . . . . . . . Triggered . | . . . . . . . . . . . . Disarmed . | . . . . . . . . . . . . Reprogrammed . | . . . . . . . . . . . . Reused . | . . . . . . . . . . . . Traps Extracted . | . . . . . . . . . . . . Installed . | . . . . . . . . . . . . Triggered 1 | . . . . . . . . . . . 1 Exploded 2 | . . . . . 2 . . . . . . Machines | -11 -10 -10 -9 -9 -9 -8 -8 -8 -8 -8 -7 ---------- Run | Jun Mat Min Mat Min Exi Min Mat Gar Mat Gar Fac Machines Disabled 34 | . . . 1 . . 2 2 5 1 7 16 Max in Single Turn 9 | . . . 1 . . 1 2 1 1 1 9 Garrison Access 1 | . . . . . . . . . . . 1 Garrison Relay 10 | . . . . . . . . 5 . 5 . Machines Repaired . | . . . . . . . . . . . . Machines Sabotaged . | . . . . . . . . . . . . Overloaded Fab Kills . | . . . . . . . . . . . . Hacking | -11 -10 -10 -9 -9 -9 -8 -8 -8 -8 -8 -7 --------- Run | Jun Mat Min Mat Min Exi Min Mat Gar Mat Gar Fac Machines Accessed 39 | . 6 1 12 . 1 . 6 2 4 4 3 Terminals 28 | . 6 1 8 . . . 4 2 3 4 . Fabricators . | . . . . . . . . . . . . Repair Stations 4 | . . . 2 . . . . . . . 2 Recycling Units . | . . . . . . . . . . . . Scanalyzers 3 | . . . 2 . . . 1 . . . . Garrison Access 3 | . . . . . . . 1 . 1 . 1 Total Hacks 102 | . 18 1 41 . 1 . 17 2 6 11 5 Successful 51 | . 9 1 25 . 1 . 6 2 3 2 2 Failed 50 | . 9 . 15 . . . 11 . 3 9 3 Catastrophic 10 | . 2 . 1 . . . 2 . 1 3 1 Database Lockouts 1 | . . . 1 . . . . . . . . Manual 44 | . 12 1 19 . 1 . 9 . 1 1 . Terminals 84 | . 18 1 34 . . . 13 2 5 11 . Fabricators . | . . . . . . . . . . . . Repair Stations 7 | . . . 3 . . . . . . . 4 Recycling Units . | . . . . . . . . . . . . Scanalyzers 6 | . . . 4 . . . 2 . . . . Garrison Access 4 | . . . . . . . 2 . 1 . 1 Terminal Hacks 27 | . 4 . 15 . 1 . 1 2 2 2 . Part Schematic 3 | . 2 . 1 . . . . . . . . Robot Analysis 3 | . . . 2 . . . 1 . . . . Emergency Access Points 3 | . . . 1 . . . . 1 . 1 . Terminal Index 1 | . 1 . . . . . . . . . . Alert Level 2 | . . . 2 . . . . . . . . Unreport Threat 5 | . 1 . 3 . . . . . 1 . . Surveillance Status 1 | . . . 1 . . . . . . . . Hauler Manifests 1 | . . . 1 . . . . . . . . Registered Components 2 | . . . 1 . . . . . 1 . . Registered Prototypes 1 | . . . 1 . . . . . . . . Zone Layout 2 | . . . 2 . . . . . . . . Security Stations 2 | . . . . . . . . 1 . 1 . EX-Prototype ID Bank 1 | . . . . . 1 . . . . . . Fabricator Hacks . | . . . . . . . . . . . . Repair Station Hacks 3 | . . . 2 . . . . . . . 1 Scan Component 2 | . . . 1 . . . . . . . 1 Repair 1 | . . . 1 . . . . . . . . Recycling Unit Hacks . | . . . . . . . . . . . . Scanalyzer 6 | . . . 4 . . . 2 . . . . Insert Component 3 | . . . 2 . . . 1 . . . . Analyze 3 | . . . 2 . . . 1 . . . . Garrison Access Hacks 3 | . . . . . . . 1 . 1 . 1 Unlock Access 3 | . . . . . . . 1 . 1 . 1 Unauthorized Hacks 12 | . 5 1 4 . . . 2 . . . . Terminals 12 | . 5 1 4 . . . 2 . . . . Botnet 12 | . 5 1 4 . . . 2 . . . . Fabricators . | . . . . . . . . . . . . Repair Stations . | . . . . . . . . . . . . Recycling Units . | . . . . . . . . . . . . Scanalyzers . | . . . . . . . . . . . . Garrison Access . | . . . . . . . . . . . . Data Cores Recovered 1 | . . . 1 . . . . . . . . Used . | . . . . . . . . . . . . Hacking Detections 35 | . 6 1 11 . . . 5 2 3 4 3 Full Trace Events 4 | . 1 . . . . . . . . 2 1 Feedback Events . | . . . . . . . . . . . . Feedback Blocked . | . . . . . . . . . . . . Robot Schematics Acquired . | . . . . . . . . . . . . Robots Built . | . . . . . . . . . . . . Authchips . | . . . . . . . . . . . . Time . | . . . . . . . . . . . . Total Robot Build Rating . | . . . . . . . . . . . . Part Schematics Acquired 6 | . 2 . 3 . . . 1 . . . . Parts Built . | . . . . . . . . . . . . Authchips . | . . . . . . . . . . . . Time . | . . . . . . . . . . . . Total Part Build Rating . | . . . . . . . . . . . . Parts Repaired 1 | . . . 1 . . . . . . . . Time 26 | . . . 26 . . . . . . . . Parts Recycled . | . . . . . . . . . . . . Recycled Matter . | . . . . . . . . . . . . Retrieved Matter . | . . . . . . . . . . . . Retrieved Components . | . . . . . . . . . . . . Parts Scanalyzed 3 | . . . 2 . . . 1 . . . . Part Schematics Acquired 3 | . . . 2 . . . 1 . . . . Parts Damaged . | . . . . . . . . . . . . Bothacking | -11 -10 -10 -9 -9 -9 -8 -8 -8 -8 -8 -7 ------------ Run | Jun Mat Min Mat Min Exi Min Mat Gar Mat Gar Fac Used RIF Installer 3 | . . . . . . . . 2 . 1 . Threat Obfuscator 1 | . . . . . . . . 1 . . . Signal Jammer 1 | . . . . . . . . . . 1 . Robots Hacked 15 | . . . . . . . . 2 . 8 5 Non-combat . | . . . . . . . . . . . . Combat 15 | . . . . . . . . 2 . 8 5 Robot Hacks Applied 15 | . . . . . . . . 2 . 8 5 scatter_targeting 2 | . . . . . . . . . . 2 . broadcast_data 1 | . . . . . . . . . . . 1 amplify_resonance 1 | . . . . . . . . . . . 1 disable_weapons 2 | . . . . . . . . . . 2 . streamctrl_high 3 | . . . . . . . . . . 2 1 formatsys_high 6 | . . . . . . . . 2 . 2 2 Relay Couplers Released 41 | . . . . . . . . 22 . 18 1 Machine Destruction 41 | . . . . . . . . 22 . 18 1 Attached 7 | . . . . . . . . 1 . 3 3 Fabnet Peak Effective % . | . . . . . . . . . . . . Robots Rewired 1 | . . . . . . . . 1 . . . Allies Hacked . | . . . . . . . . . . . . Hacks Repelled . | . . . . . . . . . . . . Allies | -11 -10 -10 -9 -9 -9 -8 -8 -8 -8 -8 -7 -------- Run | Jun Mat Min Mat Min Exi Min Mat Gar Mat Gar Fac Total Allies 18 | . . 2 . 1 . . . 3 . 4 8 Largest Group 4 | . . 2 . 1 1 . . 2 . 2 4 Highest-Rated Group 172 | . . 41 . 31 31 . . 32 . 85 172 Highest-Rated Ally 108 | . . 31 . 31 31 . . 16 . 85 108 Total Orders 2 | . . . . . . . . . . 2 . STAY 1 | . . . . . . . . . . 1 . FOLLOW 1 | . . . . . . . . . . 1 . Ally Attacks 111 | . . 6 . 7 . . . 30 . 35 33 Total Damage 1884 | . . 21 . 127 . . . 356 . 546 834 Kills 21 | . . . . 2 . . . 5 . 7 7 Allies Corrupted . | . . . . . . . . . . . . Allies Melted . | . . . . . . . . . . . . Field Lobotomies 5 | . . . . . . . . . . . 5 Intel | -11 -10 -10 -9 -9 -9 -8 -8 -8 -8 -8 -7 ------- Run | Jun Mat Min Mat Min Exi Min Mat Gar Mat Gar Fac Robot Analysis Total 3 | . . . 2 . . . 1 . . . . Derelict Logs Recovered 2 | . . 1 . 1 . . . . . . . Drone Launches . | . . . . . . . . . . . . Drone Recoveries . | . . . . . . . . . . . . Exploration | -11 -10 -10 -9 -9 -9 -8 -8 -8 -8 -8 -7 ------------- Run | Jun Mat Min Mat Min Exi Min Mat Gar Mat Gar Fac Turns Passed 16117 | 59 933 572 2136 776 352 1167 992 3030 562 4025 1513 Spaces Moved 8917 | 46 716 499 1309 557 293 671 570 1913 212 1505 626 Core 29 | 1 . . . . . . . . . . 28 Treads 1557 | . . . 2 . . . 17 2 . 1334 202 Legs . | . . . . . . . . . . . . Wheels 7294 | 45 716 499 1307 557 293 671 553 1911 212 171 359 Hover 37 | . . . . . . . . . . . 37 Flight . | . . . . . . . . . . . . Fastest Speed 50 | 50 80 110 101 120 120 120 105 105 150 195 50 Average Speed 142 | 80 106 110 117 120 120 120 115 124 161 237 171 Slowest Speed 1500 | 95 110 110 240 120 120 120 240 240 225 320 1500 Overloaded Moves . | . . . . . . . . . . . . Propulsion Burnouts . | . . . . . . . . . . . . Robots Hopped . | . . . . . . . . . . . . Cave-ins Triggered . | . . . . . . . . . . . . Exploration Rate (%) 69 | 3 98 96 95 100 71 98 47 98 20 95 15 Regions Visited 11 Branch Regions 4 Pre-discovered Areas 1 | . . 1 . . . . . . . . . Known Exits Taken 2 | . . . . . . . 1 . 1 . . Unknown Exits Taken 7 | 1 1 1 1 1 1 1 . . . . . Scrap Searched 5 | . . 2 . 1 . 2 . . . . . Spaces Dug 29 | . . . . . . . . 13 6 10 . Terrain Destroyed 451 | . . 56 13 . . 42 27 23 9 126 155 Melee 20 | . . . . . . . . 13 6 1 . Projectile 21 | . . . . . . . . . . 3 18 AOE 410 | . . 56 13 . . 42 27 10 3 122 137 Terrain Rammed . | . . . . . . . . . . . . Walls Destroyed . | . . . . . . . . . . . . Machines Disabled . | . . . . . . . . . . . . Actions | -11 -10 -10 -9 -9 -9 -8 -8 -8 -8 -8 -7 --------- Run | Jun Mat Min Mat Min Exi Min Mat Gar Mat Gar Fac Total 11237 | 64 826 514 1700 650 294 964 779 2349 379 1803 915 Wait 1057 | 9 44 4 199 82 . 223 63 150 123 69 91 Move 8907 | 45 715 498 1308 556 292 670 569 1912 212 1504 626 Hop . | . . . . . . . . . . . . Pick Up 129 | 4 14 3 21 2 1 5 21 31 1 7 19 Fast Attach 61 | 6 4 . 9 . . . 2 3 1 15 21 Attach 65 | . . . 9 . . 1 14 9 . 9 23 Detach 22 | . 2 . 2 . . . 1 3 1 8 5 Swap 135 | . 5 3 13 . . 12 9 41 6 32 14 Drop 114 | . 9 . 29 2 1 5 15 20 2 11 20 Fire 536 | . 33 6 110 8 . 48 50 83 25 78 95 Melee 114 | . . . . . . . 30 41 8 35 . Ram 1 | . . . . . . . . . . . 1 Kick . | . . . . . . . . . . . . Crush 5 | . . . . . . . 5 . . . . Escape Stasis 90 | . . . . . . . . 56 . 34 . Rewire 1 | . . . . . . . . . . 1 . Trap . | . . . . . . . . . . . . Miscellaneous . | . . . . . . . . . . . . Route ------- -11/Junkyard -10/Materials (discovered 5 exits: *Mat x3 / *Min x2) -10/Mines (discovered 2 exits: *Mat x2) -9/Materials (discovered 5 exits: *Mat x3 / [*Min x2]) -9/Mines (discovered 3 exits: *Mat x2 / *Exi) -9/Exiles -8/Mines (discovered 2 exits: *Mat x2) -8/Materials (discovered 3 exits: *Fac / Sto / Gar) -8/Garrison (discovered 4 exits: *Mat x4) -8/Materials -8/Garrison (discovered 3 exits: *Fac x3) -7/Factory History --------- Turn | Location | Event 8 | -11/Junkyard | Discovered new exit (range 16) 60 | -11/Junkyard | Entered Materials 224 | -10/Materials | Discovered new exit (range 3) 279 | -10/Materials | Discovered new exit (range 15) 300 | -10/Materials | Build established: Mutant 383 | -10/Materials | Discovered new exit (range 9) 415 | -10/Materials | Discovered new exit (range 15) 834 | -10/Materials | Discovered new exit (range 15) 993 | -10/Materials | Entered Mines 994 | -10/Mines | Assembled infested the area 1047 | -10/Mines | Met a Derelict bent on vengeance 1167 | -10/Mines | Discovered new exit (range 6) 1239 | -10/Mines | Discovered new exit (range 9) 1263 | -10/Mines | Learned location of Storage (-8) 1374 | -10/Mines | A weapon hastily lodged in a ceiling crevice suddenly fell to the ground 1422 | -10/Mines | Learned Materials security intel 1565 | -10/Mines | Entered Materials 1565 | -9/Materials | Evolved 2 slots: Propulsion x1, Utility x1 2043 | -9/Materials | Discovered new exit (range 16) 2484 | -9/Materials | Lost 3 parts (1n1u1w) 2501 | -9/Materials | Repaired Seismic Detector 2540 | -9/Materials | Discovered new exit (range 12) 2661 | -9/Materials | Discovered new exit (range 11) 2875 | -9/Materials | Central database locked down 2922 | -9/Materials | Discovered new exit (range 6) 3319 | -9/Materials | Discovered new exit (range 11) 3701 | -9/Materials | Entered Mines 3741 | -9/Mines | Discovered new exit (range 10) 3955 | -9/Mines | Received a Rocket Launcher from a helpful Derelict 4230 | -9/Mines | Received a Mining Laser from a helpful Derelict 4333 | -9/Mines | Discovered new exit (range 3) 4342 | -9/Mines | Deemed a non-threat by the Exiles lab entrance 4342 | -9/Mines | Discovered new exit (range 5) 4477 | -9/Mines | Entered Exiles 4477 | -9/Exiles | Accompanied by 1 ally 4506 | -9/Exiles | Met 8R-AWN 4528 | -9/Exiles | Met EX-HEX 4561 | -9/Exiles | Met EX-BIN 4576 | -9/Exiles | Aligned with FarCom system 4577 | -9/Exiles | Given EX-Vault access code 4606 | -9/Exiles | Opened EX-Vault 4617 | -9/Exiles | Found Field Lobotomy Kit 4641 | -9/Exiles | Warned to stay clear of 0b10 Research branches 4656 | -9/Exiles | Exiles lab attacked by MAIN.C 4816 | -9/Exiles | Discovered new exit (range 14) 4829 | -9/Exiles | Left Exiles lab with Field Lobotomy Kit 4829 | -9/Exiles | Entered Mines 5066 | -8/Mines | Core integrity fell below 50% 5540 | -8/Mines | Discovered new exit (range 10) 5679 | -8/Mines | Discovered new exit (range 6) 5996 | -8/Mines | Entered Materials 5996 | -8/Materials | Evolved 2 slots: Propulsion x1, Utility x1 5997 | -8/Materials | Identified exit to Storage 6423 | -8/Materials | Garrison activated, responded to threat 6538 | -8/Materials | Garrison activated, responded to threat 6590 | -8/Materials | Lost 8 parts (1p3n2u2w) 6753 | -8/Materials | Discovered new exit (range 14) 6851 | -8/Materials | Identified exit to Garrison 6988 | -8/Materials | Entered Garrison 7050 | -8/Garrison | Installed Relay Interface Framework 7120 | -8/Garrison | Triggered checkpoint 7142 | -8/Garrison | Garrison Relay disabled 7252 | -8/Garrison | Triggered checkpoint 7312 | -8/Garrison | Triggered checkpoint 7400 | -8/Garrison | Discovered new exit (range 11) 7458 | -8/Garrison | Triggered checkpoint 7609 | -8/Garrison | Garrison Relay disabled 7722 | -8/Garrison | Triggered checkpoint 7808 | -8/Garrison | Triggered checkpoint 7838 | -8/Garrison | Garrison Relay disabled 7870 | -8/Garrison | Expanded RIF knowledge: Threat Obfuscation 7937 | -8/Garrison | Discovered new exit (range 13) 7976 | -8/Garrison | Triggered checkpoint 8026 | -8/Garrison | Core integrity fell below 50% 8129 | -8/Garrison | Discovered new exit (range 3) 8277 | -8/Garrison | Lost 3 parts (1n2w) 8392 | -8/Garrison | Triggered checkpoint 8735 | -8/Garrison | Garrison Relay disabled 8754 | -8/Garrison | Discovered new exit (range 8) 8790 | -8/Garrison | Triggered checkpoint 8877 | -8/Garrison | Learned Materials security intel 9002 | -8/Garrison | Garrison Relay disabled 9726 | -8/Garrison | Build established: Bothacker-Mutant 10018 | -8/Garrison | Entered Materials 10450 | -8/Materials | Garrison activated, responded to threat 10580 | -8/Materials | Identified exit to Garrison 10580 | -8/Materials | Entered Garrison 10732 | -8/Garrison | Triggered checkpoint 10803 | -8/Garrison | Garrison Relay disabled 11020 | -8/Garrison | Triggered checkpoint 11068 | -8/Garrison | Triggered checkpoint 11198 | -8/Garrison | Discovered new exit (range 12) 11325 | -8/Garrison | Garrison Relay disabled 11350 | -8/Garrison | Triggered checkpoint 11399 | -8/Garrison | Garrison Relay disabled 11534 | -8/Garrison | Triggered checkpoint 11598 | -8/Garrison | Triggered checkpoint 11632 | -8/Garrison | Garrison Relay disabled 11759 | -8/Garrison | Triggered checkpoint 12517 | -8/Garrison | Spotted B-75 Beast 12884 | -8/Garrison | Hijacked Beast 3a control node with streamctrl_high 12979 | -8/Garrison | Destroyed Beast 3a 13168 | -8/Garrison | Learned Factory security intel 13327 | -8/Garrison | Discovered new exit (range 4) 13410 | -8/Garrison | Core integrity fell below 20% 13476 | -8/Garrison | Triggered checkpoint 13493 | -8/Garrison | Garrison Relay disabled 13534 | -8/Garrison | Expanded RIF knowledge: Signal Jamming 13906 | -8/Garrison | Discovered new exit (range 8) 14605 | -8/Garrison | Entered Factory 14605 | -7/Factory | Evolved 2 slots: Utility x2 15324 | -7/Factory | Identified exit to Garrison 15405 | -7/Factory | First assault squad dispatched 15448 | -7/Factory | Garrison activated, responded to threat 15626 | -7/Factory | Lost 4 parts (1p2n1u) 15640 | -7/Factory | Cargo convoy interrupted 15707 | -7/Factory | Lost 5 parts (1p2n1u1w) 15748 | -7/Factory | High security lockdown imminent 15828 | -7/Factory | High security lockdown engaged 16001 | -7/Factory | Assimilated B-48 Gladiator with FLK Orb 16004 | -7/Factory | Assimilated B-48 Gladiator with FLK Orb 16007 | -7/Factory | Assimilated M-28 Smith with FLK Orb 16011 | -7/Factory | Assimilated H-55 Commando with FLK Orb 16012 | -7/Factory | Core integrity fell below 50% 16015 | -7/Factory | Assimilated A-27 Freighter with FLK Orb 16047 | -7/Factory | Core integrity fell below 20% 16066 | -7/Factory | Lost 12 parts (1p6n4u1w) 16118 | -7/Factory | Destroyed by G-47 Trooper with Particle Gun Last Messages --------------- 16099_ Slug penetrates Wall. 16100_ C-30 ARC bursts open, deploying its payload. 16100_ G-50 Soldier unfolds itself. 16100_ G-47 Trooper unfolds itself. 16100_ Slug penetrates Wall. 16100_ I-36 Angel suffers critical hit (Blast). 16100_ Destroyed Com. Battery. 16103_ I-36 Angel knocked back. 16105_ Slug penetrates Wall. 16107_ Critical hit (Burn: +37). 16109_ Slug penetrates Wall. 16111_ Wall collapses. 16111_ Power failure, Lgt. Nuclear Core shutdown. 16111_ Penetrated by Slug. 16113_ System corrupted: Enh. Gauss Cannon jammed. 16116_ M-28 Smith repairs I-36 Angel. 16116_ Slug penetrates G-50 Soldier. 16116_ G-47 Trooper destroyed. 16117_ Overheating: System interference. 16117_ Gauss Cannon temporarily disabled. Map ----- +----------------------------------------------------+ | ??????????????????????????????????????????# | | ??????????????????????????????????????????# | | ??????????????????????????????????????????# | | ???????????????????????????????????#??????# """"" | | ?????????????????????????????????? ????# """"" | | ???????????????????????#?????????? ?????# """ | | ??????????????????????????????????" "??? ?# | | ????????????????????????????#? ??"" ""?? ?# """"" | | ?????????????????????????????# """" """"??# """"" | | ?????????????????????????????# """" """"? # """ | | ??????????????????????????#??# # | | ?????????????????????????????# """" """" # | | ?????????????????????????????# """" """" ######## | | ?????????????????????????????# """" """" # | | ?????????????????????????????# """" """" # | | ????????????????????????????## # | | ??????????????????????????#??###+####+##### " " | | ??????????????????????#????????# [[!%+ """ | | ???????????????????????????????# ![%### """ | | ???????????????????????????????# !=### = """ | | ??????????????????############## ^ ### | | ??????????????????# ; =]#?######## | | ??????????????????# ! # o^ #???#????? | | ??????????????????# ! # ^ #????????? | | #########?????????# ! # ?????? | | #?????????# @ # ??? | | ^ #?????????# # """ ???? | | #?????????# g # """ """ """ "T?????? | | ^ #??#????#?# %g # """ """ """ ?????? | | ^ #?#???????# h % # """ """ """ ????? | | #?????????####imh#;# "" "" "" ?????? | | #???????????#% h "" "" "? ????? | | ! #???????????# g ??? ????? | | ##??????????# ! ??? ????? | | ! #?########### ?????????? | | = [! ### " #"""" # ??????????? | | ![*=[ # # # ""# #;################?????? | | ##+#"###### # ""# # ! ?????? | | [ # ?????? | | =! # #????? | | !!! """ # #????? | | =* ""R" # #????? | | " " # #????? | | # #????? | | ] ###%##############?????? | | ! ????? | | % ????? | | % % % %% % ????? | | * %% ????? | | % % % ????? | +----------------------------------------------------+ Best States ------------- Heat Dissipation 72 Energy Generation 18 Energy Capacity 515 Matter Stores 300 Matter Capacity 300 Sight Range 16 Terrain Scan Range 16 Terrain Scan Density 10 Jamming Range 14 Armor Coverage 1425 Resistance: KI 30 Evasion (%) 50 Targeting Accuracy 6 Recoil Reduction 4 Offensive Hacking 10 Defensive Hacking 14 Relay Coupler Types 1 Relay Coupler Value 31 Authchip Count 1 Item Schematics ----------------- Hcp. Storage Unit | -10/Materials | Hacked Huge Storage Unit | -10/Materials | Hacked Arm. Wheel | -9/Materials | Hacked Imp. Assault Rifle | -9/Materials | Scanalyzed Hacking Suite | -9/Materials | Scanalyzed Hpw. Tractor Beam | -8/Materials | Scanalyzed Robot Schematics ------------------ None Fabricated ------------ Nothing Alien Tech Used ----------------- None Achievements -------------- None Challenges ------------ None Game ------ Seed SupersonicAlertLaser Manual? 0 Play Time 02:48:40 Cumulative 171.4 hours Start 2023.04.09 @ 02:06:08 End 2023.04.09 @ 14:53:54 Sessions 3 Manual Loads 0 Difficulty Rogue Special Mode None Game No. 90 Rogue 90 Adventurer 0 Explorer 0 Win Type - Total 2 Types 2/0/0/0/0/0/0/0/0 Lore% 52 Gallery% 64 Achievement% 54 Wizard Run 0 Options --------- ASCII 0 Keyboard 1 Movement Vi Keybinds 0 Fullscreen 1 Font 12/Smallcaps Map View 83x54 Tactical HUD 1 Map Filters NONE Filters NONE Steam 1 RUN: 99c1ae39-ed2f-4353-a689-7266f221ec82